Workbook

Sheet Feasibility Report 1 (hidden)
A1: Microsoft Excel 15.0 Feasibility Report
A2: Worksheet: [BungeeModel.xlsm]Energy Model
A3: Report Created: 3/25/2015 9:27:33 PM
A6: Constraints (not including Variable Bounds) Which Make the Problem Infeasible
B7: Cell | C7: Name | D7: Cell Value | E7: Formula | F7: Status | G7: Slack
B8: $B$12 | C8: KE at Low Point (J) [Must be Zero] | D8: 10.29 | E8: $B$12=0 | F8: Violated | G8: -10.29

Sheet Energy Model
A1: Numerical Modeling Data Sheet | E1: Group: | L1: Block:
A2: General Parameters
A3: Bungee Bear Height (m) | B3: 0.3 | D3: Energy Data Table
A4: Starting Height (m) | B4: 5.31 | D4: Height (m) | E4: Drop (m) | F4: E (J) | G4: PEg (J) | H4: PEe(J) | I4: KE(J) | J4: v(m/s)
A5: Gravitational Field Strength (N/kg) | B5: 9.8 | D5: =B4 -> 5.31 | E5: =$B$4-D5 -> 0 | F5: =$B$4*9.8*$B$6 -> 31.74318 | G5: =D5*$B$6*9.8 -> 31.74318 | H5: =IF(E5<$B$11,0,0.5*$B$8*(E5-$B$11)^2) -> 0 | I5: =F5-G5-H5 -> 0 | J5: =(2*I5/$B$6)^0.5 -> 0
A6: Mass (kg) | B6: 0.61 | D6: =D5-0.1 -> 5.21 | E6: 0.1 | F6: 31.74318 | G6: 31.14538 | H6: 0 | I6: =F6-G6-H6 -> 0.5978 | J6: 1.4
A7: Bungee Parameters | D7: =D6-0.1 -> 5.11 | E7: 0.2 | F7: 31.74318 | G7: 30.54758 | H7: 0 | I7: =F7-G7-H7 -> 1.1956 | J7: 1.979898987
A8: Spring Constant(k) (N/m) | B8: 23 | D8: 5.01 | E8: 0.3 | F8: 31.74318 | G8: 29.94978 | H8: 0 | I8: 1.7934 | J8: 2.424871131
A9: Fixed Cord Length (m) | B9: 2.2 | D9: 4.91 | E9: 0.4 | F9: 31.74318 | G9: 29.35198 | H9: 0 | I9: 2.3912 | J9: 2.8
A10: Elastic Cord Length (m) | B10: 2 | D10: 4.81 | E10: 0.5 | F10: 31.74318 | G10: 28.75418 | H10: 0 | I10: 2.989 | J10: 3.130495168
A11: Total Length (m) | B11: =B9+B10 -> 4.2 | D11: 4.71 | E11: 0.6 | F11: 31.74318 | G11: 28.15638 | H11: 0 | I11: 3.5868 | J11: 3.42928564
A12: KE at Low Point (J) | B12: =B6*B5*(B11+B13)-0.5*B8*B13^2 -> 9.406089774e-07 | D12: 4.61 | E12: 0.7 | F12: 31.74318 | G12: 27.55858 | H12: 0 | I12: 4.1846 | J12: 3.704051835
A13: Stretch (m) | B13: 1.760187776 | D13: 4.51 | E13: 0.8 | F13: 31.74318 | G13: 26.96078 | H13: 0 | I13: 4.7824 | J13: 3.959797975
A14: %Stretch [Maximum = 200%] | B14: =100*B13/B10 -> 88.00938881 | D14: 4.41 | E14: 0.9 | F14: 31.74318 | G14: 26.36298 | H14: 0 | I14: 5.3802 | J14: 4.2
A15: Jump Statitics | D15: 4.31 | E15: 1 | F15: 31.74318 | G15: 25.76518 | H15: 0 | I15: 5.978 | J15: 4.427188724
A16: Low Point (bottom bear head) (m) | B16: =B4-(B11+B13+B3) -> -0.9501877762 | D16: 4.21 | E16: 1.1 | F16: 31.74318 | G16: 25.16738 | H16: 0 | I16: 6.5758 | J16: 4.643274706
A17: Max Velocity (m/s) | B17: =(2*B5*(B11+B6*B5/2/B8))^0.5 -> 9.212336719 | D17: 4.11 | E17: 1.2 | F17: 31.74318 | G17: 24.56958 | H17: 0 | I17: 7.1736 | J17: 4.849742261
A18: Max Acceleration (g's) [Max. = 3.0] | B18: =B8*B13/B5-B6 -> 3.521052944 | D18: 4.01 | E18: 1.3 | F18: 31.74318 | G18: 23.97178 | H18: 0 | I18: 7.7714 | J18: 5.047771786
D19: 3.91 | E19: 1.4 | F19: 31.74318 | G19: 23.37398 | H19: 0 | I19: 8.3692 | J19: 5.238320341
D20: 3.81 | E20: 1.5 | F20: 31.74318 | G20: 22.77618 | H20: 0 | I20: 8.967 | J20: 5.422176685
D21: 3.71 | E21: 1.6 | F21: 31.74318 | G21: 22.17838 | H21: 0 | I21: 9.5648 | J21: 5.6
D22: 3.61 | E22: 1.7 | F22: 31.74318 | G22: 21.58058 | H22: 0 | I22: 10.1626 | J22: 5.772347876
D23: 3.51 | E23: 1.8 | F23: 31.74318 | G23: 20.98278 | H23: 0 | I23: 10.7604 | J23: 5.939696962
D24: 3.41 | E24: 1.9 | F24: 31.74318 | G24: 20.38498 | H24: 0 | I24: 11.3582 | J24: 6.102458521
D25: 3.31 | E25: 2 | F25: 31.74318 | G25: 19.78718 | H25: 0 | I25: 11.956 | J25: 6.260990337
D26: 3.21 | E26: 2.1 | F26: 31.74318 | G26: 19.18938 | H26: 0 | I26: 12.5538 | J26: 6.415605973
D27: 3.11 | E27: 2.2 | F27: 31.74318 | G27: 18.59158 | H27: 0 | I27: 13.1516 | J27: 6.566582064
D28: 3.01 | E28: 2.3 | F28: 31.74318 | G28: 17.99378 | H28: 0 | I28: 13.7494 | J28: 6.714164133
D29: 2.91 | E29: 2.4 | F29: 31.74318 | G29: 17.39598 | H29: 0 | I29: 14.3472 | J29: 6.85857128
D30: 2.81 | E30: 2.5 | F30: 31.74318 | G30: 16.79818 | H30: 0 | I30: 14.945 | J30: 7
D31: 2.71 | E31: 2.6 | F31: 31.74318 | G31: 16.20038 | H31: 0 | I31: 15.5428 | J31: 7.138627319
D32: 2.61 | E32: 2.7 | F32: 31.74318 | G32: 15.60258 | H32: 0 | I32: 16.1406 | J32: 7.274613392
D33: 2.51 | E33: 2.8 | F33: 31.74318 | G33: 15.00478 | H33: 0 | I33: 16.7384 | J33: 7.408103671
D34: 2.41 | E34: 2.9 | F34: 31.74318 | G34: 14.40698 | H34: 0 | I34: 17.3362 | J34: 7.53923073
D35: 2.31 | E35: 3 | F35: 31.74318 | G35: 13.80918 | H35: 0 | I35: 17.934 | J35: 7.668115805
D36: 2.21 | E36: 3.1 | F36: 31.74318 | G36: 13.21138 | H36: 0 | I36: 18.5318 | J36: 7.794870108
D37: 2.11 | E37: =$B$4-D37 -> 3.2 | F37: =$B$4*9.8*$B$6 -> 31.74318 | G37: =D37*$B$6*9.8 -> 12.61358 | H37: =IF(E37<$B$11,0,0.5*$B$8*(E37-$B$11)^2) -> 0 | I37: 19.1296 | J37: =(2*I37/$B$6)^0.5 -> 7.919595949
D38: 2.01 | E38: 3.3 | F38: 31.74318 | G38: 12.01578 | H38: 0 | I38: 19.7274 | J38: 8.042387705
D39: 1.91 | E39: 3.4 | F39: 31.74318 | G39: 11.41798 | H39: 0 | I39: 20.3252 | J39: 8.163332653
D40: 1.81 | E40: 3.5 | F40: 31.74318 | G40: 10.82018 | H40: 0 | I40: 20.923 | J40: 8.282511696
D41: 1.71 | E41: 3.6 | F41: 31.74318 | G41: 10.22238 | H41: 0 | I41: 21.5208 | J41: 8.4
D42: 1.61 | E42: 3.7 | F42: 31.74318 | G42: 9.62458 | H42: 0 | I42: 22.1186 | J42: 8.515867542
D43: =D42-0.1 -> 1.51 | E43: 3.8 | F43: 31.74318 | G43: 9.02678 | H43: 0 | I43: 22.7164 | J43: 8.630179604
D44: =D43-0.1 -> 1.41 | E44: 3.9 | F44: 31.74318 | G44: 8.42898 | H44: 0 | I44: 23.3142 | J44: 8.742997198
D45: 1.31 | E45: 4 | F45: 31.74318 | G45: 7.83118 | H45: 0 | I45: 23.912 | J45: 8.854377448
D46: 1.21 | E46: 4.1 | F46: 31.74318 | G46: 7.23338 | H46: 0 | I46: 24.5098 | J46: 8.964373932
D47: 1.11 | E47: 4.2 | F47: 31.74318 | G47: 6.63558 | H47: 8.164710369e-29 | I47: 25.1076 | J47: 9.073036978
D48: 1.01 | E48: 4.3 | F48: 31.74318 | G48: 6.03778 | H48: 0.115 | I48: 25.5904 | J48: 9.159855393
D49: 0.91 | E49: 4.4 | F49: 31.74318 | G49: 5.43998 | H49: 0.46 | I49: 25.8432 | J49: 9.204987956
D50: =D49-0.1 -> 0.81 | E50: 4.5 | F50: 31.74318 | G50: 4.84218 | H50: 1.035 | I50: =F50-G50-H50 -> 25.866 | J50: 9.209047583
D51: 0.71 | E51: 4.6 | F51: 31.74318 | G51: 4.24438 | H51: 1.84 | I51: 25.6588 | J51: 9.172088809
D52: 0.61 | E52: 4.7 | F52: 31.74318 | G52: 3.64658 | H52: 2.875 | I52: 25.2216 | J52: 9.093611521
D53: 0.51 | E53: 4.8 | F53: 31.74318 | G53: 3.04878 | H53: 4.14 | I53: 24.5544 | J53: 8.972526373
D54: 0.41 | E54: 4.9 | F54: 31.74318 | G54: 2.45098 | H54: 5.635 | I54: 23.6572 | J54: 8.807076142
D55: 0.31 | E55: 5 | F55: 31.74318 | G55: 1.85318 | H55: 7.36 | I55: 22.53 | J55: 8.594699091
D56: 0.21 | E56: 5.1 | F56: 31.74318 | G56: 1.25538 | H56: 9.315 | I56: 21.1728 | J56: 8.331807511
D57: 0.11 | E57: 5.2 | F57: 31.74318 | G57: 0.65758 | H57: 11.5 | I57: 19.5856 | J57: 8.013431348
D58: 0.01 | E58: 5.3 | F58: 31.74318 | G58: 0.05978 | H58: 13.915 | I58: 17.7684 | J58: 7.632630554
D59: -0.09 | E59: 5.4 | F59: 31.74318 | G59: -0.53802 | H59: 16.56 | I59: 15.7212 | J59: 7.179478953
D60: -0.19 | E60: 5.5 | F60: 31.74318 | G60: -1.13582 | H60: 19.435 | I60: 13.444 | J60: 6.639178302

Sheet Sheet2 (hidden)
A1: Numerical Modeling Data Sheet | E1: Group: | L1: Date:
D22: x | E22: f
D23: 66
C24: 70 | D24: 66 | E24: =C24-D24 -> 4 | F24: 2.8 | G24: =E24/8 -> 0.5
C25: 75 | D25: 66 | E25: =C25-D25 -> 9 | F25: 4.65 | G25: =E25/8 -> 1.125
C26: 80 | D26: 66 | E26: 14 | F26: 6.35 | G26: 1.75 | S26: 90 | T26: 66 | U26: =S26-T26 -> 24 | V26: 11.9 | W26: =U26/8 -> 3
C27: 85 | D27: 66 | E27: 19 | F27: 8.8 | G27: 2.375
I34: k | J34: 0.45 | K34: =J34*100 -> 45
D39: 67
C40: 70 | D40: =C40-$D$39 -> 3 | E40: 4.9
C41: 75 | D41: =C41-$D$39 -> 8 | E41: 8.6
C42: 80 | D42: 13 | E42: 11.7
C43: 85 | D43: 18 | E43: 15.7
C44: 90 | D44: 23 | E44: 22
D54: 74
C55: 80 | D55: =C55-$D$54 -> 6 | E55: 2.1 | F55: =D55/16 -> 0.375
C56: 85 | D56: =C56-$D$54 -> 11 | E56: 3.15 | F56: =D56/16 -> 0.6875 | S56: =2/0.44 -> 4.545454545 | T56: =1/S56 -> 0.22
C57: 90 | D57: 16 | E57: 4 | F57: 1
C58: 95 | D58: 21 | E58: 4.7 | F58: 1.3125
C59: 100 | D59: 26 | E59: 5.4 | F59: 1.625

Sheet Sheet3 (hidden)
